Workbook

Sheet 公示名单
A1: 光明区第八批企业以工代训职业培训补贴名单
A2: 序号 | B2: 单位名称 | C2: 行政区划 | D2: 申请补贴年月 | E2: 公示人数 | F2: 公示金额（元）
A3: 1 | B3: 深圳市万普光电有限公司 | C3: 光明区 | D3: 202002 | E3: 18 | F3: =E3*500 -> 9000.00
A4: 2 | B4: 深圳市协创鑫智能装备有限公司 | C4: 光明区 | D4: 202002 | E4: 92 | F4: 46000.00
A5: 3 | B5: 深圳市协创鑫智能装备有限公司 | C5: 光明区 | D5: 202010 | E5: 112 | F5: 56000.00
A6: 4 | B6: 深圳市新连兴钣金制造有限公司 | C6: 光明区 | D6: 202002 | E6: 33 | F6: 16500.00
A7: 5 | B7: 深圳市新连兴钣金制造有限公司 | C7: 光明区 | D7: 202010 | E7: 33 | F7: 16500.00
A8: 6 | B8: 深圳市骏通电子科技有限公司 | C8: 光明区 | D8: 202002 | E8: 15 | F8: 7500.00
A9: 7 | B9: 深圳市中润恒基商显科技有限公司 | C9: 光明区 | D9: 202002 | E9: 7 | F9: 3500.00
A10: 8 | B10: 深圳市中润恒基商显科技有限公司 | C10: 光明区 | D10: 202006 | E10: 6 | F10: 3000.00
A11: 9 | B11: 深圳市鹏创达自动化有限公司 | C11: 光明区 | D11: 202004 | E11: 100 | F11: 50000.00
A12: 10 | B12: 深圳市鹏创达自动化有限公司 | C12: 光明区 | D12: 202010 | E12: 81 | F12: 40500.00
A13: 11 | B13: 深圳市煊尔泰科技有限公司 | C13: 光明区 | D13: 202002 | E13: 17 | F13: 8500.00
A14: 12 | B14: 深圳市致尚科技股份有限公司 | C14: 光明区 | D14: 202002 | E14: 20 | F14: 10000.00
A15: 13 | B15: 深圳市路卓科技有限公司 | C15: 光明区 | D15: 202002 | E15: 20 | F15: 10000.00
A16: 14 | B16: 深圳市益熙电子有限公司 | C16: 光明区 | D16: 202001 | E16: 66 | F16: 33000.00
A17: 15 | B17: 深圳市益熙电子有限公司 | C17: 光明区 | D17: 202002 | E17: 66 | F17: 33000.00
A18: 16 | B18: 深圳市益熙电子有限公司 | C18: 光明区 | D18: 202003 | E18: 64 | F18: 32000.00
A19: 17 | B19: 深圳市深远通科技有限公司 | C19: 光明区 | D19: 202003 | E19: 65 | F19: 32500.00
A20: 18 | B20: 深圳市豪亿为科技有限公司 | C20: 光明区 | D20: 202002 | E20: 10 | F20: 5000.00
A21: 19 | B21: 深圳市豪亿为科技有限公司 | C21: 光明区 | D21: 202003 | E21: 10 | F21: 5000.00
A22: 20 | B22: 深圳爱镭仕光影科技有限公司 | C22: 光明区 | D22: 202002 | E22: 10 | F22: 5000.00
A23: 21 | B23: 深圳市联芯源科技有限公司 | C23: 光明区 | D23: 202002 | E23: 5 | F23: 2500.00
A24: 22 | B24: 艾达实业(深圳)有限公司 | C24: 光明区 | D24: 202001 | E24: 37 | F24: 18500.00
A25: 23 | B25: 艾达实业(深圳)有限公司 | C25: 光明区 | D25: 202009 | E25: 38 | F25: 19000.00
A26: 24 | B26: 深圳市凝锐电子科技有限公司 | C26: 光明区 | D26: 202002 | E26: 17 | F26: 8500.00
A27: 25 | B27: 深圳市佳乐鑫科技有限公司 | C27: 光明区 | D27: 202001 | E27: 9 | F27: 4500.00
A28: 26 | B28: 深圳市佳乐鑫科技有限公司 | C28: 光明区 | D28: 202004 | E28: 7 | F28: 3500.00
A29: 27 | B29: 深圳市新佳光电有限公司 | C29: 光明区 | D29: 202002 | E29: 33 | F29: 16500.00
A30: 28 | B30: 深圳市新佳光电有限公司 | C30: 光明区 | D30: 202003 | E30: 35 | F30: 17500.00
A31: 29 | B31: 深圳市新佳光电有限公司 | C31: 光明区 | D31: 202004 | E31: 36 | F31: 18000.00
A32: 30 | B32: 深圳市银月光科技有限公司 | C32: 光明区 | D32: 202002 | E32: 23 | F32: 11500.00
A33: 31 | B33: 深圳市泓意宝自动化设备有限公司 | C33: 光明区 | D33: 202008 | E33: 17 | F33: 8500.00
A34: 32 | B34: 深圳市同心富精密电子有限公司 | C34: 光明区 | D34: 202002 | E34: 7 | F34: 3500.00
A35: 33 | B35: 深圳市锐巽自动化设备有限公司 | C35: 光明区 | D35: 202002 | E35: 36 | F35: 18000.00
A36: 34 | B36: 深圳市锐巽自动化设备有限公司 | C36: 光明区 | D36: 202003 | E36: 35 | F36: 17500.00
A37: 35 | B37: 深圳市精优达科技有限公司 | C37: 光明区 | D37: 202002 | E37: 36 | F37: 18000.00
A38: 36 | B38: 深圳市丰特科技有限公司 | C38: 光明区 | D38: 202002 | E38: 12 | F38: 6000.00
A39: 37 | B39: 深圳市丰特科技有限公司 | C39: 光明区 | D39: 202003 | E39: 10 | F39: 5000.00
A40: 38 | B40: 深圳市凯雷斯顿意居酒店有限公司 | C40: 光明区 | D40: 202002 | E40: 24 | F40: 12000.00
A41: 39 | B41: 深圳市博光特科技有限公司 | C41: 光明区 | D41: 202002 | E41: 18 | F41: 9000.00
A42: 40 | B42: 深圳市奇正电子科技有限公司 | C42: 光明区 | D42: 202005 | E42: 4 | F42: 2000.00
A43: 41 | B43: 深圳市奇正电子科技有限公司 | C43: 光明区 | D43: 202010 | E43: 5 | F43: 2500.00
A44: 42 | B44: 深圳市隆阳自动化设备有限公司 | C44: 光明区 | D44: 202002 | E44: 5 | F44: 2500.00
A45: 43 | B45: 深圳市九洲智和科技有限公司 | C45: 光明区 | D45: 202002 | E45: 41 | F45: 20500.00
A46: 44 | B46: 深圳市彩屏电子有限公司 | C46: 光明区 | D46: 202002 | E46: 16 | F46: 8000.00
A47: 45 | B47: 深圳市中扬数控机床有限公司 | C47: 光明区 | D47: 202002 | E47: 44 | F47: 22000.00
A48: 46 | B48: 深圳市鸿凯运科技有限公司 | C48: 光明区 | D48: 202002 | E48: 50 | F48: 25000.00
A49: 47 | B49: 深圳市鸿凯运科技有限公司 | C49: 光明区 | D49: 202003 | E49: 54 | F49: 27000.00
A50: 48 | B50: 深圳木头科技有限公司 | C50: 光明区 | D50: 202002 | E50: 16 | F50: 8000.00
A51: 49 | B51: 深圳木头科技有限公司 | C51: 光明区 | D51: 202004 | E51: 16 | F51: 8000.00
A52: 50 | B52: 深圳木头科技有限公司 | C52: 光明区 | D52: 202006 | E52: 15 | F52: 7500.00
A53: 51 | B53: 深圳微品致远信息科技有限公司 | C53: 光明区 | D53: 202002 | E53: 207 | F53: 103500.00
A54: 52 | B54: 深圳市东胜欣科技有限公司 | C54: 光明区 | D54: 202002 | E54: 10 | F54: 5000.00
A55: 53 | B55: 深圳市东胜欣科技有限公司 | C55: 光明区 | D55: 202003 | E55: 11 | F55: 5500.00
A56: 54 | B56: 深圳市讯泉科技有限公司 | C56: 光明区 | D56: 202001 | E56: 29 | F56: 14500.00
A57: 55 | B57: 深圳市讯泉科技有限公司 | C57: 光明区 | D57: 202002 | E57: 29 | F57: 14500.00
A58: 56 | B58: 深圳市讯泉科技有限公司 | C58: 光明区 | D58: 202003 | E58: 29 | F58: 14500.00
A59: 57 | B59: 深圳市建宏拓业电子科技有限公司 | C59: 光明区 | D59: 202003 | E59: 4 | F59: 2000.00
A60: 58 | B60: 深圳市道宸科技有限公司 | C60: 光明区 | D60: 202003 | E60: 3 | F60: 1500.00
A61: 59 | B61: 深圳市道宸科技有限公司 | C61: 光明区 | D61: 202005 | E61: 4 | F61: 2000.00
A62: 60 | B62: 深圳市道宸科技有限公司 | C62: 光明区 | D62: 202010 | E62: 5 | F62: 2500.00
A63: 61 | B63: 深圳市鹏敏五金橡塑科技有限公司 | C63: 光明区 | D63: 202001 | E63: 2 | F63: 1000.00
A64: 62 | B64: 深圳市鹏敏五金橡塑科技有限公司 | C64: 光明区 | D64: 202002 | E64: 2 | F64: 1000.00
A65: 63 | B65: 深圳市鹏敏五金橡塑科技有限公司 | C65: 光明区 | D65: 202003 | E65: 2 | F65: 1000.00
A66: 64 | B66: 深圳亿格创电子有限公司 | C66: 光明区 | D66: 202002 | E66: 21 | F66: 10500.00
A67: 65 | B67: 深圳亿格创电子有限公司 | C67: 光明区 | D67: 202003 | E67: 21 | F67: =E67*500 -> 10500.00
A68: 66 | B68: 深圳亿格创电子有限公司 | C68: 光明区 | D68: 202008 | E68: 20 | F68: 10000.00
A69: 67 | B69: 深圳市宏显电子有限公司 | C69: 光明区 | D69: 202002 | E69: 8 | F69: 4000.00
A70: 68 | B70: 深圳市国玺毫分建材有限公司 | C70: 光明区 | D70: 202002 | E70: 11 | F70: 5500.00
A71: 69 | B71: 深圳市国玺毫分建材有限公司 | C71: 光明区 | D71: 202003 | E71: 12 | F71: 6000.00
A72: 70 | B72: 深圳市中科绿能光电科技有限公司 | C72: 光明区 | D72: 202010 | E72: 25 | F72: 12500.00
A73: 71 | B73: 深圳天歆科技有限公司 | C73: 光明区 | D73: 202001 | E73: 7 | F73: 3500.00
A74: 72 | B74: 深圳市雄合锋科技有限公司 | C74: 光明区 | D74: 202002 | E74: 57 | F74: =E74*500 -> 28500.00
A75: 73 | B75: 深圳市福天科技开发有限公司 | C75: 光明区 | D75: 202001 | E75: 13 | F75: 6500.00
A76: 74 | B76: 深圳捷牛科技有限公司 | C76: 光明区 | D76: 202003 | E76: 57 | F76: 28500.00
A77: 75 | B77: 深圳华烯新材料有限公司 | C77: 光明区 | D77: 202001 | E77: 12 | F77: 6000.00
A78: 76 | B78: 深圳华烯新材料有限公司 | C78: 光明区 | D78: 202002 | E78: 12 | F78: 6000.00
A79: 77 | B79: 深圳华烯新材料有限公司 | C79: 光明区 | D79: 202005 | E79: 12 | F79: 6000.00
A80: 78 | B80: 富茂源（深圳）土石方工程有限公司 | C80: 光明区 | D80: 202003 | E80: 22 | F80: 11000.00
A81: 79 | B81: 富茂源（深圳）土石方工程有限公司 | C81: 光明区 | D81: 202005 | E81: 21 | F81: 10500.00
A82: 80 | B82: 富茂源（深圳）土石方工程有限公司 | C82: 光明区 | D82: 202006 | E82: 27 | F82: 13500.00
A83: 81 | B83: 深圳市石森纸业有限公司 | C83: 光明区 | D83: 202002 | E83: 7 | F83: 3500.00
A84: 82 | B84: 深圳市建麟光能科技有限公司 | C84: 光明区 | D84: 202001 | E84: 20 | F84: 10000.00
A85: 83 | B85: 深圳市建麟光能科技有限公司 | C85: 光明区 | D85: 202002 | E85: 19 | F85: 9500.00
A86: 84 | B86: 深圳市今日电器有限公司 | C86: 光明区 | D86: 202002 | E86: 73 | F86: 36500.00
A87: 85 | B87: 深圳市欣艺盛科技有限公司 | C87: 光明区 | D87: 202001 | E87: 5 | F87: 2500.00
A88: 86 | B88: 深圳市欣艺盛科技有限公司 | C88: 光明区 | D88: 202002 | E88: 5 | F88: 2500.00
A89: 87 | B89: 深圳市瑞祺光电子有限公司 | C89: 光明区 | D89: 202008 | E89: 3 | F89: 1500.00
A90: 88 | B90: 深圳市恒德生物科技有限公司 | C90: 光明区 | D90: 202008 | E90: 21 | F90: 10500.00
A91: 89 | B91: 深圳市方达研磨技术有限公司 | C91: 光明区 | D91: 202002 | E91: 35 | F91: 17500.00
A92: 90 | B92: 深圳市方达研磨技术有限公司 | C92: 光明区 | D92: 202003 | E92: 37 | F92: 18500.00
A93: 91 | B93: 深圳上泰生物工程有限公司 | C93: 光明区 | D93: 202001 | E93: 49 | F93: 24500.00
A94: 92 | B94: 深圳上泰生物工程有限公司 | C94: 光明区 | D94: 202010 | E94: 51 | F94: 25500.00
A95: 93 | B95: 深圳市高亮显示屏有限公司 | C95: 光明区 | D95: 202001 | E95: 6 | F95: 3000.00
A96: 94 | B96: 深圳市高亮显示屏有限公司 | C96: 光明区 | D96: 202002 | E96: 6 | F96: 3000.00
A97: 95 | B97: 深圳市高亮显示屏有限公司 | C97: 光明区 | D97: 202003 | E97: 6 | F97: 3000.00
A98: 96 | B98: 深圳市闽蓝恒业科技有限公司 | C98: 光明区 | D98: 202003 | E98: 11 | F98: 5500.00
A99: 97 | B99: 深圳市闽蓝恒业科技有限公司 | C99: 光明区 | D99: 202006 | E99: 10 | F99: 5000.00
A100: 98 | B100: 深圳市闽蓝恒业科技有限公司 | C100: 光明区 | D100: 202010 | E100: 12 | F100: 6000.00
A101: 99 | B101: 深圳市富亿德塑胶有限公司 | C101: 光明区 | D101: 202003 | E101: 25 | F101: 12500.00
A102: 100 | B102: 深圳市华通盛五金制品有限公司 | C102: 光明区 | D102: 202005 | E102: 2 | F102: 1000.00
A103: 101 | B103: 深圳市华通盛五金制品有限公司 | C103: 光明区 | D103: 202009 | E103: 2 | F103: 1000.00
A104: 102 | B104: 深圳市华通盛五金制品有限公司 | C104: 光明区 | D104: 202010 | E104: 2 | F104: 1000.00
A105: 103 | B105: 溢洋光电（深圳）有限公司 | C105: 光明区 | D105: 202004 | E105: 129 | F105: 64500.00
A106: 104 | B106: 深圳市润鼎科技有限公司 | C106: 光明区 | D106: 202002 | E106: 39 | F106: 19500.00
A107: 105 | B107: 深圳市润鼎科技有限公司 | C107: 光明区 | D107: 202005 | E107: 41 | F107: 20500.00
A108: 106 | B108: 欧迪斯自动化设备（深圳）有限公司 | C108: 光明区 | D108: 202002 | E108: 70 | F108: 35000.00
A109: 107 | B109: 深圳亨力时世界名表中心有限公司 | C109: 光明区 | D109: 202003 | E109: 54 | F109: 27000.00
A110: 108 | B110: 深圳市荣仕达机械设备有限公司 | C110: 光明区 | D110: 202003 | E110: 9 | F110: 4500.00
A111: 109 | B111: 深圳市荣仕达机械设备有限公司 | C111: 光明区 | D111: 202005 | E111: 9 | F111: 4500.00
A112: 110 | B112: 深圳市荣仕达机械设备有限公司 | C112: 光明区 | D112: 202006 | E112: 9 | F112: 4500.00
A113: 111 | B113: 深圳市其荣兴科技有限公司 | C113: 光明区 | D113: 202002 | E113: 47 | F113: 23500.00
A114: 112 | B114: 深圳市朴皓实业有限公司 | C114: 光明区 | D114: 202002 | E114: 47 | F114: 23500.00
A115: 113 | B115: 深圳市中瑞祥科技有限公司 | C115: 光明区 | D115: 202002 | E115: 5 | F115: 2500.00
A116: 114 | B116: 深圳市敖翔实业发展有限公司 | C116: 光明区 | D116: 202001 | E116: 75 | F116: 37500.00
A117: 115 | B117: 公明精密弹簧（深圳）有限公司 | C117: 光明区 | D117: 202002 | E117: 91 | F117: 45500.00
A118: 116 | B118: 深圳市聚恒创电子材料有限公司 | C118: 光明区 | D118: 202003 | E118: 5 | F118: 2500.00
A119: 117 | B119: 深圳市聚恒创电子材料有限公司 | C119: 光明区 | D119: 202004 | E119: 5 | F119: 2500.00
A120: 118 | B120: 深圳市聚恒创电子材料有限公司 | C120: 光明区 | D120: 202008 | E120: 5 | F120: 2500.00
A121: 119 | B121: 深圳市至睿信息咨询有限公司 | C121: 光明区 | D121: 202007 | E121: 8 | F121: 4000.00
A122: 120 | B122: 深圳市至睿信息咨询有限公司 | C122: 光明区 | D122: 202008 | E122: 8 | F122: 4000.00
A123: 121 | B123: 深圳市至睿信息咨询有限公司 | C123: 光明区 | D123: 202009 | E123: 8 | F123: 4000.00
A124: 122 | B124: 深圳市佳能洗涤用品有限公司 | C124: 光明区 | D124: 202002 | E124: 2 | F124: 1000.00
A125: 123 | B125: 深圳锋稜科技有限公司 | C125: 光明区 | D125: 202002 | E125: 1 | F125: 500.00
A126: 124 | B126: 深圳锋稜科技有限公司 | C126: 光明区 | D126: 202010 | E126: 3 | F126: 1500.00
A127: 125 | B127: 深圳中塑实业有限公司 | C127: 光明区 | D127: 202002 | E127: 8 | F127: 4000.00
A128: 126 | B128: 深圳中塑实业有限公司 | C128: 光明区 | D128: 202005 | E128: 6 | F128: 3000.00
A129: 127 | B129: 深圳中塑实业有限公司 | C129: 光明区 | D129: 202008 | E129: 6 | F129: 3000.00
A130: 128 | B130: 深圳市意达亨科技有限公司 | C130: 光明区 | D130: 202002 | E130: 17 | F130: 8500.00
A131: 129 | B131: 深圳市盛泽森科技有限公司 | C131: 光明区 | D131: 202002 | E131: 14 | F131: 7000.00
A132: 130 | B132: 深圳市信晓财税服务有限公司 | C132: 光明区 | D132: 202001 | E132: 1 | F132: =E132*500 -> 500.00
A133: 131 | B133: 深圳市信晓财税服务有限公司 | C133: 光明区 | D133: 202002 | E133: 2 | F133: 1000.00
A134: 132 | B134: 深圳市信晓财税服务有限公司 | C134: 光明区 | D134: 202009 | E134: 2 | F134: 1000.00
A135: 133 | B135: 深圳市喜途运动用品有限公司 | C135: 光明区 | D135: 202001 | E135: 13 | F135: 6500.00
A136: 134 | B136: 深圳市喜途运动用品有限公司 | C136: 光明区 | D136: 202003 | E136: 13 | F136: 6500.00
A137: 135 | B137: 深圳市喜途运动用品有限公司 | C137: 光明区 | D137: 202007 | E137: 12 | F137: 6000.00
A138: 136 | B138: 深圳市金瑞康科技有限公司 | C138: 光明区 | D138: 202002 | E138: 47 | F138: 23500.00
A139: 137 | B139: 深圳市鑫茂精密科技有限公司 | C139: 光明区 | D139: 202008 | E139: 13 | F139: 6500.00
A140: 138 | B140: 深圳市鑫茂精密科技有限公司 | C140: 光明区 | D140: 202009 | E140: 12 | F140: 6000.00
A141: 139 | B141: 深圳市永富恒建材有限公司 | C141: 光明区 | D141: 202001 | E141: 4 | F141: 2000.00
A142: 140 | B142: 深圳市永富恒建材有限公司 | C142: 光明区 | D142: 202003 | E142: 4 | F142: 2000.00
A143: 141 | B143: 深圳市永富恒建材有限公司 | C143: 光明区 | D143: 202005 | E143: 5 | F143: 2500.00
A144: 142 | B144: 深圳市耀德精密机械有限公司 | C144: 光明区 | D144: 202002 | E144: 11 | F144: 5500.00
A145: 143 | B145: 深圳市耀德精密机械有限公司 | C145: 光明区 | D145: 202009 | E145: 11 | F145: 5500.00
A146: 144 | B146: 深圳市同利五金制品有限公司 | C146: 光明区 | D146: 202001 | E146: 42 | F146: 21000.00
A147: 145 | B147: 深圳市康达龙电子科技有限公司 | C147: 光明区 | D147: 202002 | E147: 7 | F147: 3500.00
A148: 146 | B148: 深圳市豫泰科技有限公司 | C148: 光明区 | D148: 202001 | E148: 5 | F148: 2500.00
A149: 147 | B149: 深圳纽斯声学系统有限公司 | C149: 光明区 | D149: 202003 | E149: 17 | F149: 8500.00
A150: 148 | B150: 深圳纽斯声学系统有限公司 | C150: 光明区 | D150: 202006 | E150: 17 | F150: 8500.00
A151: 149 | B151: 深圳纽斯声学系统有限公司 | C151: 光明区 | D151: 202007 | E151: 17 | F151: 8500.00
A152: 150 | B152: 深圳市鑫泰濠科技有限公司 | C152: 光明区 | D152: 202002 | E152: 16 | F152: 8000.00
A153: 151 | B153: 深圳市鑫瑞电气有限公司 | C153: 光明区 | D153: 202002 | E153: 17 | F153: 8500.00
A154: 152 | B154: 深圳市鑫瑞电气有限公司 | C154: 光明区 | D154: 202010 | E154: 14 | F154: 7000.00
A155: 153 | B155: 深圳市丽彩美包装制品有限公司 | C155: 光明区 | D155: 202001 | E155: 10 | F155: 5000.00
A156: 154 | B156: 深圳市一畅电子有限公司 | C156: 光明区 | D156: 202003 | E156: 14 | F156: 7000.00
A157: 155 | B157: 深圳市一畅电子有限公司 | C157: 光明区 | D157: 202009 | E157: 14 | F157: 7000.00
A158: 156 | B158: 深圳市一畅电子有限公司 | C158: 光明区 | D158: 202010 | E158: 15 | F158: 7500.00
A159: 157 | B159: 深圳市恒生磨料有限公司 | C159: 光明区 | D159: 202002 | E159: 6 | F159: 3000.00
A160: 158 | B160: 深圳市时代胜纳实业有限公司 | C160: 光明区 | D160: 202001 | E160: 8 | F160: 4000.00
A161: 159 | B161: 深圳市时代胜纳实业有限公司 | C161: 光明区 | D161: 202002 | E161: 8 | F161: 4000.00
A162: 160 | B162: 深圳市时代胜纳实业有限公司 | C162: 光明区 | D162: 202003 | E162: 7 | F162: 3500.00
A163: 161 | B163: 深圳市盾牌防雷技术有限公司 | C163: 光明区 | D163: 202002 | E163: 59 | F163: 29500.00
A164: 162 | B164: 深圳市中深通讯技术有限公司 | C164: 光明区 | D164: 202001 | E164: 4 | F164: 2000.00
A165: 163 | B165: 深圳市中深通讯技术有限公司 | C165: 光明区 | D165: 202002 | E165: 4 | F165: 2000.00
A166: 164 | B166: 深圳市中深通讯技术有限公司 | C166: 光明区 | D166: 202003 | E166: 4 | F166: 2000.00
A167: 165 | B167: 深圳市帕玛精品制造有限公司 | C167: 光明区 | D167: 202002 | E167: 114 | F167: 57000.00
A168: 166 | B168: 深圳市帕玛精品制造有限公司 | C168: 光明区 | D168: 202004 | E168: 109 | F168: =E168*500 -> 54500.00
A169: 167 | B169: 深圳市帕玛精品制造有限公司 | C169: 光明区 | D169: 202010 | E169: 64 | F169: 32000.00
A170: 168 | B170: 深圳首开德胜贸易有限公司 | C170: 光明区 | D170: 202001 | E170: 3 | F170: 1500.00
A171: 169 | B171: 深圳市创品新媒体科技有限公司 | C171: 光明区 | D171: 202002 | E171: 61 | F171: 30500.00
A172: 170 | B172: 深圳市创品新媒体科技有限公司 | C172: 光明区 | D172: 202003 | E172: 60 | F172: 30000.00
A173: 171 | B173: 深圳市创品新媒体科技有限公司 | C173: 光明区 | D173: 202007 | E173: 61 | F173: 30500.00
A174: 172 | B174: 深圳市迪威普机械设备有限公司 | C174: 光明区 | D174: 202005 | E174: 7 | F174: 3500.00
A175: 173 | B175: 深圳市迪威普机械设备有限公司 | C175: 光明区 | D175: 202006 | E175: 7 | F175: 3500.00
A176: 174 | B176: 深圳市迪威普机械设备有限公司 | C176: 光明区 | D176: 202007 | E176: 7 | F176: 3500.00
A177: 175 | B177: 深圳市聚晟实业有限公司 | C177: 光明区 | D177: 202001 | E177: 2 | F177: 1000.00
A178: 176 | B178: 深圳市华溢智造科技有限公司 | C178: 光明区 | D178: 202001 | E178: 6 | F178: 3000.00
A179: 177 | B179: 深圳市华溢智造科技有限公司 | C179: 光明区 | D179: 202003 | E179: 5 | F179: 2500.00
A180: 178 | B180: 深圳市华溢智造科技有限公司 | C180: 光明区 | D180: 202007 | E180: 5 | F180: 2500.00
A181: 179 | B181: 深圳市酒源信息科技有限公司 | C181: 光明区 | D181: 202001 | E181: 10 | F181: 5000.00
A182: 180 | B182: 深圳市兴世博科技有限公司 | C182: 光明区 | D182: 202002 | E182: 10 | F182: 5000.00
A183: 181 | B183: 深圳市兴世博科技有限公司 | C183: 光明区 | D183: 202005 | E183: 10 | F183: 5000.00
A184: 182 | B184: 深圳市兴世博科技有限公司 | C184: 光明区 | D184: 202006 | E184: 10 | F184: 5000.00
A185: 183 | B185: 深圳市宏新中科技有限公司 | C185: 光明区 | D185: 202002 | E185: 16 | F185: 8000.00
A186: 184 | B186: 深圳市欧铂特科技有限公司 | C186: 光明区 | D186: 202001 | E186: 5 | F186: 2500.00
A187: 185 | B187: 深圳市欧铂特科技有限公司 | C187: 光明区 | D187: 202010 | E187: 3 | F187: 1500.00
A188: 186 | B188: 深圳市恒义建筑技术有限公司 | C188: 光明区 | D188: 202002 | E188: 128 | F188: 64000.00
A189: 187 | B189: 深圳市朗电精密电子有限公司 | C189: 光明区 | D189: 202003 | E189: 32 | F189: 16000.00
A190: 188 | B190: 深圳市朗电精密电子有限公司 | C190: 光明区 | D190: 202007 | E190: 43 | F190: 21500.00
A191: 189 | B191: 深圳市中塑模具塑胶制品有限公司 | C191: 光明区 | D191: 202003 | E191: 15 | F191: 7500.00
A192: 190 | B192: 深圳市瀚洋光电科技有限公司 | C192: 光明区 | D192: 202001 | E192: 8 | F192: 4000.00
A193: 191 | B193: 深圳市瀚洋光电科技有限公司 | C193: 光明区 | D193: 202003 | E193: 9 | F193: 4500.00
A194: 192 | B194: 深圳市瀚洋光电科技有限公司 | C194: 光明区 | D194: 202006 | E194: 10 | F194: 5000.00
A195: 193 | B195: 深圳誉格金属制品有限公司 | C195: 光明区 | D195: 202002 | E195: 34 | F195: 17000.00
A196: 194 | B196: 深圳市乐歌数码科技有限公司 | C196: 光明区 | D196: 202001 | E196: 28 | F196: 14000.00
A197: 195 | B197: 深圳市乐歌数码科技有限公司 | C197: 光明区 | D197: 202005 | E197: 29 | F197: 14500.00
A198: 196 | B198: 深圳市乐歌数码科技有限公司 | C198: 光明区 | D198: 202007 | E198: 30 | F198: 15000.00
A199: 197 | B199: 深圳市马企服装有限公司 | C199: 光明区 | D199: 202003 | E199: 34 | F199: 17000.00
A200: 198 | B200: 深圳市马企服装有限公司 | C200: 光明区 | D200: 202004 | E200: 45 | F200: 22500.00
... 53 more rows
